bitfinex/quotes_ETHUSD_20241009
["timestamp","ask_amount","ask_price","bid_price","bid_amount"]
[1728488923894,0.012,2464.2,2463.9,4.0586]
[1728488924549,4.012292,2464.2,2463.7,4.05881]
[1728488924793,0.6899,2464.1,2463.7,8.11762]
[1728488924962,0.6899,2464.1,2463.7,4.05881]
[1728488925296,0.6899,2464.1,2463.8,4.05869]
[1728488925647,0.6899,2464.1,2463.7,4.05881]
[1728488926059,0.6899,2464.3,2463.8,4.05869]
[1728488926473,0.6899,2464.3,2463.9,4.05858]
[1728488927053,4.05787,2464.4,2463.9,4.05858]
[1728488927384,4.05787,2464.4,2464.0,1.0998]
[1728488927385,8.11577,2464.4,2464.0,1.0998]
[1728488927577,4.05799,2464.3,2463.9,4.05858]
[1728488927782,4.05811,2464.2,2463.8,5.15856]
[1728488928085,0.004,2464.1,2463.8,1.0998]
[1728488928294,0.008,2464.1,2463.8,1.0998]
[1728488928648,0.004,2463.9,2463.7,4.05892]
[1728488928847,0.008,2463.9,2463.8,4.05877]
[1728488929294,0.012,2463.9,2463.8,4.05877]
[1728488931792,0.012,2463.9,2463.8,6.527137]
[1728488932018,0.008,2463.9,2463.8,6.527137]
[1728488932228,0.004,2463.9,2463.8,9.527137]
[1728488932388,0.012,2464.1,2463.8,8.521637]
[1728488932590,0.008,2464.1,2464.0,5.70164]
[1728488932844,0.008,2464.1,2464.0,7.84544401]
[1728488932983,0.012,2464.1,2464.0,7.84544401]
[1728488933824,0.012,2464.1,2464.0,7.29544401]
[1728488935109,0.012,2464.1,2464.0,7.84544401]
[1728488935428,0.012,2464.1,2464.0,7.29544401]
[1728488937923,0.012,2464.1,2464.0,7.92337045]
[1728488938126,0.012,2464.1,2464.0,7.84544401]
[1728488940728,0.004,2464.1,2464.0,11.5516371]
[1728488941026,0.008,2464.4,2464.3,5.68964]
[1728488941231,0.008,2464.4,2464.3,6.964411]
[1728488941232,0.004,2464.4,2464.3,6.964411]
[1728488941551,0.004,2464.4,2464.1,4.05812]
[1728488941893,0.008,2464.2,2464.1,4.05812]
[1728488942091,0.012,2464.2,2464.1,4.05812]
[1728488943843,0.012,2464.2,2464.0,8.11675]
[1728488944057,0.012,2464.2,2463.7,1.0585]
[1728488944343,4.74156,2464.0,2463.5,4.05912]
[1728488944702,0.008,2463.6,2463.5,4.05912]
[1728488945035,0.012,2463.6,2463.5,4.05912]
[1728488946327,0.012,2463.6,2463.5,5.37926621]
[1728488946528,0.012,2463.6,2463.3,4.43660906]
[1728488946702,0.695,2463.6,2463.3,0.37702906]
[1728488946903,7.74243,2463.4,2463.3,0.37702906]
[1728488947152,11.45262309,2463.4,2463.3,0.37702906]
[1728488947444,19.61601709,2463.4,2463.3,0.37702906]
[1728488947602,19.62001709,2463.4,2463.3,0.37702906]
[1728488949459,19.81963083,2463.4,2463.3,0.37702906]
[1728488951559,16.11343774,2463.4,2463.3,0.37702906]
[1728488951917,19.81963083,2463.4,2463.3,0.37702906]
[1728488952945,11.86720874,2463.4,2463.3,0.37702906]
[1728488954969,7.95404374,2463.4,2463.3,0.37702906]
[1728488955477,16.28565274,2463.4,2463.3,0.37702906]
[1728488955689,19.99184583,2463.4,2463.3,0.37702906]
[1728488956842,13.82515574,2463.4,2463.3,0.37702906]
[1728488959162,14.24903252,2463.4,2463.3,0.37702906]
[1728488960186,17.95522561,2463.4,2463.3,0.37702906]
[1728488960397,18.50522561,2463.4,2463.3,0.37702906]
[1728488961268,14.24903252,2463.4,2463.3,0.37702906]
[1728488962258,13.14461552,2463.4,2463.3,0.37702906]
[1728488962595,16.85080861,2463.4,2463.3,0.37702906]
[1728488964661,12.35818152,2463.4,2463.3,0.37702906]
[1728488964966,14.98968183,2463.4,2463.3,0.37702906]
[1728488965167,15.41348737,2463.4,2463.3,0.37702906]
[1728488969794,11.70729428,2463.4,2463.3,0.37702906]
[1728488971627,15.41348737,2463.4,2463.3,0.37702906]
[1728488971826,12.08404237,2463.4,2463.3,0.37702906]
[1728488972322,62.99034037,2463.4,2463.3,0.37702906]
[1728488974306,63.54034037,2463.4,2463.3,0.37702906]
[1728488974657,7.06074,2462.6,2462.5,0.86317254]
[1728488974802,59.197638,2462.6,2462.5,0.86317254]
[1728488974997,59.197638,2462.6,2461.7,0.91604824]
[1728488974998,4.06206,2461.8,2461.7,0.91604824]
[1728488975196,4.06606,2461.8,2461.7,0.91604824]
[1728488975401,17.664409,2461.8,2461.7,0.91604824]
[1728488975635,17.668409,2461.8,2461.7,0.91604824]
[1728488975845,16.652815,2461.8,2461.7,0.91604824]
[1728488976947,16.227781,2461.8,2461.7,0.91604824]
[1728488977153,8.104386,2461.8,2461.7,0.91604824]
[1728488977819,4.07406,2461.8,2461.7,0.91604824]
[1728488978015,0.012,2461.8,2461.7,0.91604824]
[1728488978245,0.012,2461.8,2461.7,2.01954824]
[1728488989129,4.07406,2461.8,2461.7,2.01954824]
[1728488989331,4.07406,2461.8,2461.7,0.91604824]
[1728488989868,0.012,2461.8,2461.7,0.91604824]
[1728488994684,0.012,2461.8,2461.7,5.99181706]
[1728488994847,0.012,2461.8,2461.7,3.00668706]
[1728488995290,0.012,2461.8,2461.7,1.99314824]
[1728488998396,0.012,2461.8,2461.7,6.13639139]
[1728488999350,0.012,2461.8,2461.7,6.05537824]
[1728488999771,0.012,2461.8,2461.7,1.99314824]
[1728489000855,4.07406,2461.8,2461.7,0.91604824]
[1728489001259,0.012,2461.8,2461.7,0.91604824]
[1728489001569,0.012,2461.8,2461.7,1.98514824]
[1728489002808,0.012,2461.8,2461.7,0.91604824]
[1728489002988,4.07406,2461.8,2461.7,0.91604824]
[1728489006492,0.012,2461.8,2461.7,0.91604824]
[1728489006688,0.012,2461.8,2461.7,1.99474824]
[1728489007016,0.012,2461.8,2461.7,7.06893306]
[1728489007944,0.012,2461.8,2461.7,0.91604824]
[1728489008231,4.07406,2461.8,2461.7,0.91604824]
[1728489008736,18.381144,2461.8,2461.7,0.91604824]
[1728489008896,36.912146,2461.8,2461.7,0.91604824]
[1728489009098,37.40302958,2461.8,2461.7,0.91604824]
[1728489009335,36.952117,2461.8,2461.7,0.62978317]
[1728489010337,7.77225,2461.2,2460.8,0.96892393]
[1728489010557,62.38474109,2461.2,2460.8,0.96892393]
[1728489010707,62.93474109,2461.2,2460.8,0.96892393]
[1728489010896,62.38474109,2461.2,2460.8,0.96892393]
[1728489011096,22.569741,2461.2,2460.8,0.96892393]
[1728489011635,15.295055,2461.2,2460.8,0.96892393]
[1728489011929,14.268365,2461.2,2460.8,0.96892393]
[1728489012132,4.06305,2461.2,2460.8,0.96892393]
[1728489012653,7.77187,2461.5,2460.8,9.09604393]
[1728489012851,4.06298,2461.3,2460.8,5.03248393]
[1728489013135,7.77187,2461.5,2461.0,1.008]
[1728489013136,4.06273,2461.4,2461.0,1.008]
[1728489013335,7.06256,2461.5,2461.0,5.07129]
[1728489013632,4.06256,2461.5,2461.0,5.07129]
[1728489013822,4.06256,2461.5,2461.0,1.008]
[1728489014025,4.06256,2461.5,2461.0,5.07138]
[1728489014026,4.26409455,2461.5,2461.0,5.07138]
[1728489014223,4.06273,2461.4,2461.0,5.07138]
[1728489014610,4.06273,2461.4,2461.0,1.008]
[1728489014830,4.06273,2461.4,2461.0,5.07137]
[1728489015353,4.06295,2461.3,2461.0,1.008]
[1728489015630,4.06273,2461.4,2461.0,5.07138]
[1728489015830,4.06298,2461.3,2461.0,1.008]
[1728489016034,0.20141455,2461.5,2461.0,1.008]
[1728489016224,4.26412455,2461.5,2461.0,5.07135]
[1728489016396,4.07418,2461.8,2461.0,5.07135]
[1728489016594,4.07418,2461.8,2461.1,0.92443188]
[1728489016595,4.06244,2461.6,2461.1,0.92443188]
[1728489016795,0.004,2461.2,2461.1,4.98762188]
[1728489017027,0.012,2461.2,2461.1,4.98762188]
[1728489018652,0.012,2461.2,2461.1,5.06887841]
[1728489018855,0.012,2461.2,2461.1,4.98762188]
[1728489019159,0.008,2461.2,2461.1,9.59322188]
[1728489019451,0.012,2461.3,2461.2,5.66865]
[1728489019646,0.012,2461.3,2461.2,11.59848334]
[1728489019854,0.012,2461.3,2461.2,11.51741759]
[1728489020821,0.012,2461.3,2461.2,14.51741759]
[1728489021022,0.008,2461.3,2461.2,14.51741759]
[1728489021362,0.008,2461.6,2461.5,8.69766]
[1728489021568,0.008,2461.7,2461.6,4.06239]
[1728489021722,0.004,2461.9,2461.8,4.06206]
[1728489021916,0.008,2461.9,2461.8,5.72767886]
[1728489022154,0.012,2461.9,2461.8,5.72767886]
[1728489022466,0.004,2461.9,2461.8,10.81909884]
[1728489022749,0.008,2462.2,2462.1,5.13777]
[1728489022958,0.004,2462.2,2462.1,8.84396309]
[1728489023159,0.004,2462.2,2462.1,9.39396309]
[1728489023719,0.004,2462.3,2462.2,4.6114]
[1728489023952,0.004,2462.3,2462.2,6.41860631]
[1728489024312,0.012,2462.3,2462.2,6.41860631]
[1728489024633,0.012,2462.3,2462.2,7.44940631]
[1728489025022,0.008,2462.3,2462.2,10.44940631]
[1728489025255,0.004,2462.3,2462.2,10.44940631]
[1728489025438,0.012,2462.5,2462.4,4.06107]
[1728489025646,0.008,2462.5,2462.4,14.21455075]
[1728489025870,0.004,2462.5,2462.4,14.13355172]
[1728489026174,0.004,2462.6,2462.4,14.13355172]
[1728489026175,0.004,2462.6,2462.5,8.71281]
[1728489026358,0.012,2462.8,2462.7,4.06058]
[1728489026521,0.012,2462.8,2462.7,9.38567309]
[1728489026870,0.008,2462.8,2462.7,11.4364034]
[1728489027030,0.004,2462.8,2462.7,11.4364034]
[1728489027221,0.008,2463.0,2462.8,3.55]
[1728489027222,0.012,2463.0,2462.8,3.55]
[1728489027527,0.008,2463.1,2463.0,7.61008]
[1728489027729,0.004,2463.3,2463.0,11.31627309]
[1728489027957,0.004,2463.3,2463.2,9.38484309]
[1728489028169,0.004,2463.6,2463.5,4.05926]
[1728489028489,7.57287253,2465.3,2463.5,15.04839319]
[1728489028490,0.91474323,2464.8,2463.5,15.04839319]
[1728489028776,4.97187323,2464.8,2464.3,8.11572]
[1728489028933,4.97187323,2464.8,2464.3,4.05786]
[1728489028934,4.76633,2464.8,2464.3,4.05786]
[1728489029355,4.05732,2464.7,2464.2,5.14221]
[1728489029949,4.76633,2464.8,2464.3,4.05794]
[1728489030152,4.76633,2464.8,2464.3,8.11577]
[1728489030371,0.7092,2464.8,2464.4,4.05776]
[1728489030533,0.20617361,2464.9,2464.6,4.05736]
[1728489030730,0.20617361,2464.9,2464.4,8.11534]
[1728489030976,0.004,2464.5,2464.4,4.05765]
[1728489031686,0.004,2464.5,2464.4,10.08756946]
[1728489031974,0.004,2464.6,2464.5,4.05761]
[1728489032182,0.004,2464.6,2464.5,4.60761]
[1728489032330,0.008,2464.6,2464.5,4.60761]
[1728489033173,0.008,2464.6,2464.4,5.15405]
[1728489033468,0.008,2464.6,2464.4,4.05765]
[1728489033882,0.735,2464.6,2464.2,8.11608]
[1728489034035,0.004,2464.3,2464.2,4.05803]
[1728489034241,0.008,2464.3,2464.2,4.05803]
[1728489035732,0.008,2464.3,2464.1,8.1165]
[1728489036161,0.008,2464.3,2463.2,4.55995246]
[1728489036368,4.0583,2464.1,2463.6,4.05896]
[1728489036533,8.11673,2464.1,2463.5,8.11838]
[1728489036746,0.004,2463.7,2463.5,8.11838]
[1728489036952,0.004,2463.7,2463.5,4.05917]
[1728489037277,0.008,2463.7,2463.5,4.05917]
[1728489037829,0.008,2463.7,2463.5,8.1183]
[1728489038071,0.008,2463.7,2463.5,4.05913]
[1728489038536,4.06693,2463.7,2463.3,4.05958]
[1728489038734,0.008,2463.7,2463.3,4.05958]
[1728489039074,0.008,2463.7,2463.1,5.11093]
[1728489039075,0.008,2463.4,2463.1,9.17074]
[1728489039336,0.004,2463.2,2463.1,9.17074]
[1728489039486,0.008,2463.2,2463.1,9.17074]
[1728489039655,0.008,2463.2,2463.0,4.05996]
[1728489040257,0.008,2463.2,2463.1,4.05992]
[1728489042461,0.008,2463.2,2463.0,4.05996]
[1728489042657,0.008,2463.2,2463.0,8.11995]
[1728489042857,0.008,2463.2,2463.1,4.05992]
[1728489043287,0.008,2463.2,2463.0,4.05996]
[1728489043288,0.008,2463.2,2462.8,5.1114]
[1728489043492,0.008,2463.2,2463.0,4.05999]
[1728489044210,0.008,2463.2,2462.9,4.06012]
[1728489044409,0.008,2463.2,2462.9,8.12029]
[1728489044636,0.008,2463.2,2462.9,4.06012]
[1728489044815,4.06783,2463.2,2462.7,4.06049]
[1728489045329,4.06783,2463.2,2462.4,4.06097]
[1728489045330,0.004,2462.8,2462.4,4.06097]
[1728489045535,0.004,2462.8,2462.1,7.44]
[1728489045536,4.06066,2462.7,2462.1,7.44]
[1728489045739,0.735,2462.8,2462.1,7.44]
[1728489045884,4.06098,2462.5,2462.0,4.06163]
[1728489046083,4.06082,2462.6,2462.1,4.06155]
[1728489046288,4.06094,2462.5,2462.1,4.06155]
[1728489046862,4.06494,2462.5,2462.1,4.06155]
[1728489047027,0.004,2462.2,2462.1,4.06155]
[1728489047197,0.008,2462.2,2462.1,4.06155]
[1728489047610,0.008,2462.2,2462.0,4.06169]
[1728489048111,0.008,2462.2,2462.1,4.06157]
[1728489050435,0.008,2462.2,2462.1,4.976988]
[1728489051251,0.008,2462.2,2462.1,5.526988]
[1728489051606,0.004,2462.2,2462.1,6.630588]
[1728489051805,0.008,2462.4,2462.3,4.06124]
[1728489052051,0.004,2462.4,2462.3,4.61124]
[1728489052253,3.0,2463.4,2462.9,4.06017]
[1728489052254,4.7865,2463.4,2462.9,4.06017]
[1728489052605,0.004,2463.0,2462.9,4.06017]
[1728489052908,0.008,2463.0,2462.9,4.06017]
[1728489053749,0.008,2463.0,2462.9,5.16377]
[1728489055210,0.008,2463.0,2462.9,4.06017]
[1728489057418,0.008,2463.0,2462.9,4.872225]
[1728489057621,0.008,2463.0,2462.9,5.422225]
[1728489060778,0.004,2463.0,2462.9,6.58911284]
[1728489061064,0.008,2463.2,2463.1,4.05992]
[1728489061273,0.008,2463.2,2463.1,4.11930301]
[1728489061274,0.004,2463.2,2463.1,4.11930301]
[1728489061591,7.26443106,2463.9,2463.7,4.05893]
[1728489061592,0.7239,2463.9,2463.7,4.05893]
[1728489061950,0.7239,2463.9,2463.5,4.05918]
[1728489061951,0.004,2463.6,2463.5,4.05918]
[1728489062133,0.004,2463.6,2463.4,8.11874]
[1728489062134,0.008,2463.6,2463.4,8.11874]
[1728489062308,0.004,2463.6,2463.4,8.11874]
[1728489062454,0.004,2463.6,2463.5,4.05926]
[1728489062900,0.008,2463.6,2463.5,4.05926]
[1728489064502,0.008,2463.6,2463.5,5.32711825]
[1728489064658,0.004,2463.6,2463.5,5.32711825]
[1728489065206,0.008,2463.7,2463.6,5.714]
[1728489065770,0.008,2463.7,2463.6,4.0591]
[1728489066193,0.008,2463.7,2463.5,4.05918]
[1728489066405,0.008,2463.7,2463.4,8.11874]
[1728489066587,0.008,2463.7,2463.5,4.05915]
[1728489067200,0.008,2463.7,2463.6,4.0591]
[1728489067399,0.008,2463.7,2463.6,5.921025]
[1728489067594,0.004,2463.7,2463.6,14.09207995]
[1728489067816,0.008,2463.9,2463.8,4.05877]
[1728489068001,0.004,2463.9,2463.8,4.05877]
[1728489068313,0.008,2463.9,2463.8,4.05877]
[1728489069451,0.008,2463.9,2463.8,6.27363475]
[1728489069578,0.008,2463.9,2463.8,6.82363475]
[1728489069780,0.004,2463.9,2463.8,10.93783475]
[1728489070110,0.008,2464.2,2464.1,4.05827]
[1728489070316,0.008,2464.2,2464.1,4.869937]
[1728489070519,0.004,2464.2,2464.1,4.869937]
[1728489071068,0.004,2464.2,2464.1,5.419937]
[1728489073421,0.008,2464.3,2464.2,6.9729547]
[1728489076503,0.008,2464.3,2464.2,5.9617547]
[1728489079781,0.008,2464.3,2464.0,4.05843]
[1728489080008,0.008,2464.3,2464.2,4.05811]
[1728489080210,0.008,2464.3,2464.1,4.05824]
[1728489080745,0.008,2464.3,2464.0,4.05843]
[1728489080943,0.008,2464.3,2463.8,2.21486475]
[1728489081258,0.008,2464.3,2464.0,4.05838]
[1728489081409,0.008,2464.3,2464.2,4.05811]
[1728489083513,0.008,2464.3,2464.1,4.05825]
[1728489084149,0.008,2464.3,2464.2,4.05811]
[1728489085310,4.06597,2464.3,2463.7,4.05892]
[1728489085554,4.78201,2464.2,2463.8,4.05869]
[1728489086379,0.004,2463.9,2463.8,4.05869]
[1728489086554,0.008,2463.9,2463.8,4.05869]
[1728489086855,0.008,2463.9,2463.7,4.05892]
[1728489087039,0.008,2463.9,2463.7,8.11777]
[1728489087210,0.008,2463.9,2463.7,4.05885]
[1728489087654,0.008,2463.9,2463.6,4.05907]
[1728489087811,0.7239,2463.8,2463.7,4.05893]
[1728489088210,0.008,2463.9,2463.7,4.05893]
[1728489088639,0.008,2463.9,2463.7,4.05885]
[1728489089158,0.008,2463.9,2463.8,4.68994353]
[1728489089362,0.004,2463.9,2463.8,7.68994353]
[1728489089527,0.008,2464.1,2464.0,4.60844]
[1728489089736,0.008,2464.1,2464.0,4.68959153]
[1728489090414,0.008,2464.1,2464.0,5.74379153]
[1728489090614,0.008,2464.1,2464.0,7.8047484]
[1728489092354,0.004,2464.1,2464.0,7.8047484]
[1728489092675,0.008,2464.4,2464.3,4.05794]
[1728489093162,0.008,2464.4,2464.3,4.60794]
[1728489093382,0.008,2464.4,2464.3,5.63464]
[1728489093539,0.008,2464.6,2464.5,7.60761]
[1728489093875,0.008,2464.6,2464.5,4.05761]
[1728489095730,0.008,2464.6,2464.5,4.60761]
[1728489095937,0.008,2464.6,2464.5,4.05761]
[1728489097741,0.008,2464.6,2464.5,5.63731]
[1728489097938,0.008,2464.6,2464.5,6.74934163]
[1728489098159,0.008,2464.6,2464.5,5.16964163]
[1728489098576,0.008,2464.6,2464.5,5.71964163]
[1728489099579,0.008,2464.6,2464.5,4.05761]
[1728489099765,0.7226,2464.5,2464.3,4.05786]
[1728489099935,0.004,2464.4,2464.3,4.05786]
[1728489100133,0.008,2464.4,2464.3,4.05786]
[1728489103953,0.008,2464.4,2464.3,4.869453]
[1728489104268,0.008,2464.4,2464.3,6.502053]
[1728489106488,0.008,2464.4,2464.3,6.58319032]
[1728489106642,0.008,2464.4,2464.3,6.502053]
[1728489107591,0.004,2464.4,2464.3,9.502053]
[1728489107756,0.008,2464.6,2464.3,9.502053]
[1728489107941,0.008,2464.6,2464.5,4.05761]
[1728489108138,0.004,2464.6,2464.5,4.60761]
[1728489108339,0.7226,2465.0,2464.7,4.05725]
[1728489108581,4.7794,2465.0,2464.6,4.05742]
[1728489108788,0.004,2464.7,2464.2,7.44]
[1728489108958,0.004,2464.7,2464.5,4.05753]
[1728489109286,4.77948,2465.0,2464.6,4.05734]
[1728489109509,4.05688,2465.0,2464.6,4.05734]
[1728489109784,4.05688,2465.0,2464.2,5.618703]
[1728489109785,0.7226,2464.6,2464.3,4.05793]
[1728489110684,0.004,2464.4,2464.3,4.05793]
[1728489111062,0.008,2464.4,2464.3,4.05793]
[1728489112042,0.008,2464.4,2464.2,4.05807]
[1728489112244,0.008,2464.4,2464.1,4.05825]
[1728489112800,0.7226,2464.3,2464.0,4.05843]
[1728489113287,0.004,2464.1,2464.0,4.05843]
[1728489113689,0.008,2464.1,2463.8,4.05872]
[1728489114042,0.004,2463.9,2463.8,4.05872]
[1728489114287,0.004,2463.9,2463.8,4.870474]
[1728489114698,0.008,2463.9,2463.8,4.870474]
[1728489114898,0.7306,2463.9,2463.8,4.870474]
[1728489115113,0.7306,2463.9,2463.5,4.05911]
[1728489115295,0.7266,2463.9,2463.8,4.05877]
[1728489115494,4.05802,2464.3,2463.8,4.05877]
[1728489115495,0.7226,2464.1,2463.8,4.05877]
[1728489116091,0.7226,2464.1,2463.7,4.05891]
[1728489116800,0.7226,2464.0,2463.5,3.70687686]
[1728489117000,0.7226,2464.0,2463.7,4.05886]
[1728489117589,0.004,2463.8,2463.7,4.05886]
[1728489117787,0.008,2463.8,2463.7,4.05886]
[1728489119030,0.008,2463.8,2463.6,4.05909]
[1728489119535,0.008,2463.8,2463.5,7.76606686]
[1728489119751,0.7214,2463.7,2463.5,4.05919]
[1728489119951,0.7214,2463.7,2463.4,8.11867]
[1728489120115,0.7254,2463.5,2463.4,4.05932]
[1728489120453,0.7254,2463.5,2463.4,4.465252]
[1728489120454,0.008,2463.5,2463.4,4.465252]
[1728489122562,0.008,2463.5,2463.2,4.0596]
[1728489122767,0.004,2463.5,2463.2,8.11927]
[1728489122982,0.004,2463.5,2462.8,4.06033]
[1728489122983,0.004,2463.1,2463.0,4.05995]
[1728489123267,0.7214,2463.4,2462.9,3.70687686]
[1728489123268,0.008,2463.3,2462.9,3.70687686]
[1728489123421,0.004,2463.1,2463.0,4.06]
[1728489124052,0.008,2463.1,2463.0,4.06]
[1728489125526,0.008,2463.1,2463.0,5.7192]
[1728489125727,0.004,2463.1,2463.0,4.61]
[1728489125950,0.004,2463.1,2463.0,5.95916946]
[1728489126267,0.008,2463.2,2463.1,4.05992]
[1728489126469,0.008,2463.2,2463.1,7.76679686]
[1728489126635,0.008,2463.2,2463.1,9.36449686]
[1728489126970,0.008,2463.3,2463.1,9.36449686]
[1728489127269,0.008,2463.3,2463.2,6.16810741]
[1728489127450,0.008,2463.3,2463.2,6.08711663]
[1728489128857,0.008,2463.3,2463.2,6.16807574]
[1728489130445,0.008,2463.3,2463.2,6.08711663]
[1728489131366,0.008,2463.3,2463.2,6.16749288]
[1728489132353,0.008,2463.3,2463.2,6.08711663]
[1728489132556,0.008,2463.3,2463.2,5.53711663]
[1728489132764,0.008,2463.3,2463.2,6.08711663]
[1728489133274,0.004,2463.3,2463.2,6.08711663]
[1728489133475,0.004,2463.3,2463.2,9.08711663]
[1728489133633,2.008,2463.6,2463.5,4.05926]
[1728489133832,2.008,2463.6,2463.5,10.22530186]
[1728489133833,2.004,2463.6,2463.5,10.22530186]
[1728489134030,2.0,2463.6,2463.5,10.22530186]
[1728489134576,2.004,2463.6,2463.5,10.22530186]
[1728489134939,2.0,2463.6,2463.5,10.22530186]
[1728489135139,2.0,2463.6,2463.5,13.22530186]
[1728489140254,2.0,2463.6,2463.5,4.05926]
[1728489140748,2.0,2463.6,2463.5,11.80863686]
[1728489140985,2.0,2463.6,2463.5,8.10176]
[1728489141558,2.0,2463.6,2463.5,8.65176]
[1728489143269,2.0,2463.6,2463.4,4.0594]
[1728489143496,2.0,2463.6,2463.4,4.0593]
[1728489144067,2.0,2463.6,2463.5,4.05926]
[1728489145001,2.0,2463.6,2463.2,4.05967]
[1728489145161,0.7214,2463.5,2463.1,4.05989]
[1728489145366,0.7214,2463.5,2463.3,4.05958]
[1728489145808,0.008,2463.4,2463.3,4.05958]
[1728489147984,0.008,2463.4,2463.2,4.05965]
[1728489148302,0.008,2463.4,2463.3,4.05959]
[1728489149277,0.008,2463.4,2463.3,5.50270043]
[1728489150101,0.008,2463.4,2463.3,5.421514]
[1728489152167,0.004,2463.4,2463.3,9.508214]
[1728489152468,2.008,2463.6,2463.5,7.60926]
[1728489152673,2.004,2463.6,2463.5,11.31613686]
[1728489152994,2.0,2463.6,2463.5,13.44951095]
[1728489153766,2.0,2463.6,2463.5,14.52871095]
[1728489153971,2.004,2463.6,2463.5,14.52871095]
[1728489154573,2.0,2463.6,2463.5,18.23558781]
[1728489156041,0.004,2464.1,2464.0,4.05844]
[1728489156238,0.004,2464.2,2464.1,4.05827]
[1728489156239,0.008,2464.2,2464.1,4.05827]
[1728489156530,0.004,2464.2,2464.1,4.05827]
[1728489160316,0.004,2464.2,2464.1,5.24062869]
[1728489160632,0.004,2464.2,2464.1,5.79062869]
[1728489160846,0.008,2464.3,2464.2,4.60811]
[1728489161132,0.004,2464.6,2464.5,4.05761]
[1728489161340,0.20208076,2464.9,2464.4,4.05774]
[1728489161546,0.7189,2464.7,2464.4,4.05774]
[1728489161698,0.7189,2464.7,2464.3,4.05791]
[1728489162195,0.004,2464.4,2464.3,4.05791]
[1728489162550,0.008,2464.4,2464.3,4.05791]
[1728489165334,0.008,2464.4,2464.3,5.65842056]
[1728489167739,0.008,2464.4,2464.3,6.20842056]
[1728489173450,0.008,2464.4,2464.3,4.60791]
[1728489178975,0.7269,2464.4,2464.3,4.60791]
[1728489179690,0.7269,2464.4,2464.2,4.05811]
[1728489181247,0.7269,2464.4,2464.0,4.0584]
[1728489181478,0.7269,2464.4,2463.9,4.60852]
[1728489181797,0.7269,2464.4,2464.0,4.05843]
[1728489181969,0.7269,2464.4,2463.9,0.55]
[1728489182150,0.7269,2464.4,2464.0,4.05843]
[1728489182351,0.7269,2464.4,2463.7,5.10898]
[1728489182549,0.7269,2464.4,2463.7,7.5176281]
[1728489182795,0.7269,2464.4,2463.8,4.05864]
[1728489183108,0.7269,2464.4,2463.9,4.0586]
[1728489183390,0.7269,2464.4,2464.1,4.0582]
[1728489183758,0.7269,2464.4,2464.2,0.08095771]
[1728489184256,0.7269,2464.4,2464.2,4.0581]
[1728489184607,0.008,2464.4,2464.3,0.81163]
[1728489185300,0.008,2464.4,2464.3,4.86957]
[1728489185588,0.008,2464.4,2464.3,4.95071486]
[1728489186296,0.008,2464.4,2464.3,5.50071486]
[1728489186492,0.008,2464.4,2464.3,5.41957]
[1728489189867,0.008,2464.4,2464.3,0.81163]
[1728489190186,0.008,2464.4,2464.0,4.05834]
[1728489190187,0.7179,2464.3,2464.0,4.05834]
[1728489190372,0.004,2464.1,2463.9,4.05851]
[1728489190673,0.008,2464.1,2463.7,7.5177381]
[1728489190885,0.004,2463.8,2463.7,7.5177381]
[1728489191090,0.008,2463.8,2463.7,7.5177381]
[1728489191293,0.008,2463.8,2463.7,4.05889]
[1728489193175,0.008,2463.8,2463.7,4.60889]
[1728489193368,0.008,2463.8,2463.7,5.69579]
[1728489193633,0.004,2463.8,2463.7,5.69579]
[1728489193804,0.008,2464.0,2463.9,4.0586]
[1728489193973,0.7179,2464.6,2463.9,5.63818886]
[1728489194173,0.7179,2464.6,2464.2,4.05809]
[1728489194469,0.7179,2464.6,2464.1,4.05822]
[1728489194675,0.7179,2464.6,2464.3,4.05788]
[1728489197400,0.7179,2464.6,2464.2,4.05808]
[1728489197608,0.7179,2464.6,2464.3,4.05793]
[1728489198415,0.7179,2464.6,2464.4,4.05775]
[1728489198641,0.7179,2464.8,2464.3,4.51847786]
[1728489198952,0.004,2464.6,2464.5,4.05758]
[1728489199120,0.20208076,2464.9,2464.5,4.05758]
[1728489199487,0.004,2464.6,2464.3,7.76472686]
[1728489199727,0.004,2464.6,2464.2,1.019]
[1728489199728,0.7179,2464.5,2464.4,0.87837269]
[1728489199953,0.004,2464.4,2464.1,4.05818]
[1728489200090,0.004,2464.2,2464.1,4.05818]
[1728489200294,0.008,2464.2,2464.1,4.05818]
[1728489203609,0.008,2464.2,2464.1,4.60818]
[1728489203819,0.008,2464.2,2464.1,4.68932839]
[1728489204018,0.008,2464.2,2464.1,6.17482012]
[1728489204223,0.008,2464.2,2464.1,6.09367173]
[1728489204919,0.008,2464.2,2464.1,5.54367173]
[1728489205570,0.008,2464.2,2464.1,1.48549173]
[1728489205708,0.7179,2464.1,2463.8,4.05874]
[1728489205914,0.004,2463.9,2463.8,4.05874]
[1728489206113,0.008,2463.9,2463.8,4.05874]
[1728489207021,0.008,2463.9,2463.7,4.0589]
[1728489207356,0.004,2463.7,2463.3,12.23737686]
[1728489207525,0.004,2463.4,2463.1,0.19889677]
[1728489207870,0.004,2463.2,2463.1,4.05991]
[1728489208029,0.004,2463.2,2463.1,4.87192]